fUSD/lending_fUSD_20251112
["ID","MTS","AMOUNT","RATE_DAILY","PERIOD"]
[393682078,1762921853619,-500.0,0.00039908,20]
[393682079,1762921853629,-500.0,0.00039908,20]
[393682080,1762921853639,-500.0,0.00039908,20]
[393682081,1762921853648,-500.0,0.00039908,20]
[393682082,1762921853658,-500.0,0.00039908,20]
[393682083,1762921853667,-500.0,0.00039908,20]
[393682084,1762921853677,-500.0,0.00039908,20]
[393682085,1762921853687,-500.0,0.00039911,15]
[393682086,1762921853696,-240.0,0.00039948,7]
[393682087,1762921853705,-726.32,0.00039977,20]
[393682088,1762921853714,-500.0,0.00039977,20]
[393682089,1762921853723,-500.0,0.00039977,20]
[393682090,1762921853733,-500.0,0.00039977,20]
[393682091,1762921853742,-514.0,0.00039977,20]
[393682092,1762921853752,-500.0,0.00039977,20]
[393682093,1762921853761,-500.0,0.00039977,20]
[393682094,1762921853771,-500.0,0.00039977,20]
[393682095,1762921853780,-500.0,0.00039977,20]
[393682096,1762921853790,-622.24,0.00039977,20]
[393682097,1762921853800,-500.0,0.00039977,20]
[393682098,1762921853810,-771.97,0.00039977,20]
[393682099,1762921853820,-500.0,0.00039977,20]
[393682100,1762921853829,-500.0,0.00039977,20]
[393682101,1762921853839,-500.0,0.00039977,20]
[393682102,1762921853848,-500.0,0.00039977,20]
[393682103,1762921853858,-500.0,0.00039977,20]
[393682104,1762921853868,-177.06381769,0.00039977,20]
[393682105,1762921853877,-500.0,0.00039977,20]
[393682106,1762921853887,-605.03,0.00039977,20]
[393682107,1762921853897,-222.67000001,0.00039977,20]
[393682108,1762921854007,-500.0,0.00039977,20]
[393682109,1762921854022,-651.55,0.00039977,20]
[393682110,1762921854031,-500.0,0.00039977,20]
[393682111,1762921854045,-150.0,0.00039978,2]
[393682112,1762921854057,-500.0,0.00039978,60]
[393682113,1762921854067,-500.0,0.00039978,10]
[393682114,1762921854076,-150.0,0.00039978,60]
[393682115,1762921854086,-500.0,0.00039978,2]
[393682116,1762921854096,-500.0,0.00039978,60]
[393682117,1762921854106,-150.0,0.00039978,60]
[393682118,1762921854116,-150.0,0.00039978,2]
[393682119,1762921854126,-500.0,0.00039978,60]
[393682120,1762921854140,-150.0,0.00039978,60]
[393682121,1762921854150,-758.36,0.00039995,30]
[393682122,1762921854160,-500.0,0.00039998,20]
[393682123,1762921854170,-500.0,0.00039998,20]
[393682124,1762921854180,-500.0,0.00039998,20]
[393682125,1762921854190,-608.398515,0.00039998,20]
[393682126,1762921854200,-500.0,0.00039998,20]
[393682127,1762921854209,-500.0,0.00039998,20]
[393682128,1762921854220,-500.0,0.00039998,20]
[393682129,1762921854230,-522.7,0.00039998,20]
[393682130,1762921854240,-500.0,0.00039998,20]
[393682131,1762921854249,-500.0,0.00039998,20]
[393682132,1762921854259,-500.0,0.00039998,20]
[393682133,1762921854268,-530.35,0.00039998,20]
[393682134,1762921854278,-500.0,0.00039998,20]
[393682135,1762921854288,-500.0,0.00039998,20]
[393682136,1762921854300,-500.0,0.00039998,20]
[393682137,1762921854311,-500.0,0.00039998,20]
[393682138,1762921854321,-500.0,0.00039998,20]
[393682139,1762921854330,-500.0,0.00039998,20]
[393682140,1762921854345,-504.13,0.00039998,20]
[393682141,1762921854355,-500.0,0.00039998,20]
[393682142,1762921854366,-573.48,0.00039998,20]
[393682143,1762921854375,-500.0,0.00039998,20]
[393682144,1762921854385,-500.0,0.00039998,20]
[393682145,1762921854395,-500.0,0.00039998,20]
[393682146,1762921854408,-500.0,0.00039998,20]
[393682147,1762921854417,-429.13730017,0.00039998,20]
[393682148,1762921854428,-500.0,0.00039998,20]
[393682149,1762921854437,-500.0,0.00039998,20]
[393682150,1762921854449,-500.0,0.00039998,20]
[393682151,1762921854459,-500.0,0.00039998,20]
[393682152,1762921854469,-500.0,0.00039998,20]
[393682153,1762921854479,-500.0,0.00039999,20]
[393682154,1762921854489,-233.67058451,0.00039999,20]
[393682155,1762921854498,-500.0,0.00039999,20]
[393682156,1762921854508,-500.0,0.00039999,20]
[393682157,1762921854517,-500.0,0.00039999,20]
[393682158,1762921854527,-500.0,0.00039999,20]
[393682159,1762921854536,-500.0,0.00039999,20]
[393682160,1762921854549,-500.0,0.00039999,20]
[393682161,1762921854560,-500.0,0.00039999,20]
[393682162,1762921854570,-500.0,0.00039999,20]
[393682163,1762921854579,-500.0,0.00039999,20]
[393682164,1762921854589,-500.0,0.00039999,20]
[393682165,1762921854599,-500.0,0.00039999,20]
[393682166,1762921854608,-500.0,0.00039999,20]
[393682167,1762921854617,-500.0,0.00039999,20]
[393682168,1762921854627,-762.39,0.00039999,20]
[393682169,1762921854636,-500.0,0.00039999,20]
[393682170,1762921854646,-500.0,0.00039999,20]
[393682171,1762921854655,-500.0,0.00039999,20]
[393682172,1762921854665,-500.0,0.00039999,20]
[393682173,1762921854675,-158.02779917,0.00039999,20]
[393682174,1762921854685,-500.0,0.00039999,20]
[393682175,1762921854695,-551.57,0.00039999,20]
[393682176,1762921854704,-500.0,0.00039999,20]
[393682177,1762921854714,-500.0,0.00039999,20]
[393682178,1762921854723,-500.0,0.00039999,20]
[393682179,1762921854732,-692.84,0.00039999,20]
[393682180,1762921854746,-726.32,0.00039999,20]
[393682181,1762921854755,-500.0,0.00039999,20]
[393682182,1762921854764,-645.41,0.00039999,2]
[393682183,1762921854775,-500.0,0.00039999,20]
[393682184,1762921854785,-772.03,0.00039999,20]
[393682185,1762921854795,-500.0,0.00039999,7]
[393682186,1762921854804,-500.0,0.00039999,20]
[393682187,1762921854819,-631.53,0.00039999,20]
[393682188,1762921854828,-500.0,0.00039999,20]
[393682189,1762921854837,-500.0,0.00039999,20]
[393682190,1762921854847,-500.0,0.00039999,20]
[393682191,1762921854856,-500.0,0.00039999,20]
[393682192,1762921854865,-500.0,0.00039999,20]
[393682193,1762921854875,-500.0,0.00039999,20]
[393682194,1762921854884,-500.0,0.00039999,20]
[393682195,1762921854894,-500.0,0.00039999,20]
[393682196,1762921854903,-500.0,0.00039999,20]
[393682197,1762921854912,-500.0,0.00039999,20]
[393682198,1762921854922,-500.0,0.00039999,20]
[393682199,1762921854931,-500.0,0.00039999,20]
[393682200,1762921854942,-500.0,0.00039999,20]
[393682201,1762921854952,-500.0,0.00039999,20]
[393682202,1762921854961,-500.0,0.00039999,20]
[393682203,1762921854971,-500.0,0.00039999,20]
[393682204,1762921854981,-969.65,0.00039999,20]
[393682205,1762921854990,-524.47679466,0.00039999,20]
[393682206,1762921855000,-263.32912143,0.00039999,20]
[393682207,1762921855010,-500.0,0.00039999,20]
[393682208,1762921855019,-500.0,0.00039999,20]
[393682209,1762921855029,-500.0,0.00039999,20]
[393682210,1762921855039,-500.0,0.00039999,20]
[393682211,1762921855049,-500.0,0.00039999,20]
[393682212,1762921855059,-500.0,0.00039999,20]
[393682213,1762921855069,-500.0,0.00039999,20]
[393682214,1762921855078,-622.24,0.00039999,20]
[393682215,1762921855087,-500.0,0.00039999,20]
[393682216,1762921855098,-500.0,0.00039999,20]
[393682217,1762921855108,-500.0,0.00039999,20]
[393682218,1762921855118,-533.40423995,0.00039999,20]
[393682219,1762921855128,-500.0,0.00039999,20]
[393682220,1762921855138,-522.7,0.00039999,20]
[393682221,1762921855148,-500.0,0.00039999,20]
[393682222,1762921855157,-500.0,0.00039999,20]
[393682223,1762921855167,-771.97,0.00039999,20]
[393682224,1762921855177,-500.0,0.00039999,20]
[393682225,1762921855187,-500.0,0.00039999,20]
[393682226,1762921855196,-500.0,0.00039999,20]
[393682227,1762921855207,-500.0,0.00039999,20]
[393682228,1762921855217,-500.0,0.00039999,20]
[393682229,1762921855227,-1149.92,0.00039999,20]
[393682230,1762921855236,-530.35,0.00039999,20]
[393682231,1762921855247,-999.0,0.00039999,120]
[393682232,1762921855257,-269.88,0.00039999,20]
[393682233,1762921855267,-500.0,0.00039999,20]
[393682234,1762921855276,-500.0,0.00039999,20]
[393682235,1762921855286,-500.0,0.00039999,20]
[393682236,1762921855297,-500.0,0.00039999,20]
[393682237,1762921855306,-196.09081895,0.00039999,20]
[393682238,1762921855317,-500.0,0.00039999,20]
[393682239,1762921855326,-500.0,0.00039999,20]
[393682240,1762921855347,-600.38716084,0.00039999,20]
[393682241,1762921855359,-500.0,0.00039999,20]
[393682242,1762921855369,-500.0,0.00039999,20]
[393682243,1762921855379,-500.0,0.00039999,20]
[393682244,1762921855390,-500.0,0.00039999,20]
[393682245,1762921855408,-500.0,0.00039999,20]
[393682246,1762921855419,-500.0,0.00039999,20]
[393682247,1762921855429,-504.13,0.00039999,20]
[393682248,1762921855441,-500.0,0.00039999,20]
[393682249,1762921855452,-500.0,0.00039999,20]
[393682250,1762921855462,-500.0,0.00039999,20]
[393682251,1762921855474,-500.0,0.00039999,20]
[393682252,1762921855485,-500.0,0.00039999,20]
[393682253,1762921855495,-500.0,0.00039999,20]
[393682254,1762921855505,-500.0,0.00039999,20]
[393682255,1762921855515,-500.0,0.00039999,20]
[393682256,1762921855525,-573.48,0.00039999,20]
[393682257,1762921855536,-500.0,0.00039999,20]
[393682258,1762921855547,-500.0,0.00039999,20]
[393682259,1762921855557,-500.0,0.00039999,20]
[393682260,1762921855567,-605.03,0.00039999,20]
[393682261,1762921855578,-500.0,0.00039999,20]
[393682262,1762921855588,-500.0,0.00039999,20]
[393682263,1762921855598,-500.0,0.00039999,20]
[393682264,1762921855609,-500.0,0.00039999,20]
[393682265,1762921855619,-679.47900327,0.00039999,120]
[393682266,1762921855630,-500.0,0.00039999,20]
[393682267,1762921855640,-651.55,0.00039999,20]
[393682268,1762921855650,-500.0,0.00039999,20]
[393682269,1762921855660,-500.0,0.00039999,20]
[393682270,1762921855670,-500.0,0.00039999,20]
[393682271,1762921855679,-500.0,0.00039999,20]
[393682272,1762921855690,-500.0,0.00039999,20]
[393682273,1762921855813,-500.0,0.00039999,20]
[393682274,1762921855825,-500.0,0.00039999,20]
[393682275,1762921855834,-500.0,0.00039999,20]
[393682276,1762921855844,-500.0,0.00039999,20]
[393682277,1762921855853,-500.0,0.00039999,20]
[393682278,1762921855866,-500.0,0.00039999,20]
[393682279,1762921855876,-2463.0,0.0004,5]
[393682280,1762921855885,-500.0,0.0004,2]
[393682281,1762921855895,-500.0,0.0004,2]
[393682282,1762921855904,-242.5,0.0004,30]
[393682283,1762921855916,-300000.0,0.0004,14]
[393682284,1762921855926,-5000.0,0.0004,90]
[393682285,1762921855936,-5000.0,0.0004,90]
[393682286,1762921855946,-5000.0,0.0004,90]
[393682287,1762921855956,-5000.0,0.0004,90]
[393682288,1762921855965,-5000.0,0.0004,90]
[393682289,1762921855975,-5000.0,0.0004,90]
[393682290,1762921855984,-5000.0,0.0004,90]
[393682291,1762921855994,-5000.0,0.0004,90]
[393682292,1762921856003,-5000.0,0.0004,90]
[393682293,1762921856017,-5042.35129543,0.0004,90]
[393682294,1762921856028,-436.23468632,0.0004,30]
[393682295,1762921856037,-360.5427001,0.00040001,20]
[393682296,1762921856047,-500.0,0.00040001,20]
[393682297,1762921856058,-500.0,0.00040001,20]
[393682298,1762921856068,-500.0,0.00040001,20]
[393682299,1762921856077,-500.0,0.00040001,20]
[393682300,1762921856087,-500.0,0.00040001,20]
[393682301,1762921856096,-227.38144594,0.00040001,20]
[393682302,1762921856106,-500.0,0.00040001,20]
[393682303,1762921856115,-1000.0,0.00040001,2]
[393682304,1762921856125,-500.0,0.00040001,20]
[393682305,1762921856135,-500.0,0.00040001,20]
[393682306,1762921856144,-500.0,0.00040001,7]
[393682307,1762921856154,-500.0,0.00040001,20]
[393682308,1762921856164,-256.39258735,0.00040001,20]
[393682309,1762921856173,-334.23095053,0.00040001,20]
[393682310,1762921856183,-500.0,0.00040001,20]
[393682311,1762921856193,-500.0,0.00040001,20]
[393682312,1762921856202,-404.17780089,0.00040001,20]
[393682313,1762921856213,-500.0,0.00040001,20]
[393682314,1762921856222,-275.20455652,0.00040001,20]
[393682315,1762921856233,-500.0,0.00040001,20]
[393682316,1762921856243,-500.0,0.00040001,20]
[393682317,1762921856254,-500.0,0.00040001,20]
[393682318,1762921856268,-500.0,0.00040001,20]
[393682319,1762921856278,-564.75,0.00040001,2]
[393682320,1762921856288,-500.0,0.00040001,20]
[393682321,1762921856298,-500.0,0.00040001,20]
[393682322,1762921856309,-500.0,0.00040001,20]
[393682323,1762921856319,-447.36828631,0.00040001,20]
[393682324,1762921856329,-534.81132141,0.00040001,20]
[393682325,1762921856338,-500.0,0.00040001,20]
[393682326,1762921856348,-500.0,0.00040001,20]
[393682327,1762921856357,-488.51673964,0.00040001,20]
[393682328,1762921856367,-618.59,0.00040001,20]
[393682329,1762921856377,-500.0,0.00040001,20]
[393682330,1762921856388,-500.0,0.00040001,20]
[393682331,1762921856399,-500.0,0.00040001,20]
[393682332,1762921856409,-504.60831035,0.00040001,20]
[393682333,1762921856419,-734.4,0.00040001,20]
[393682334,1762921856428,-500.0,0.00040001,20]
[393682335,1762921856438,-500.0,0.00040001,20]
[393682336,1762921856450,-500.0,0.00040001,20]
[393682337,1762921856460,-500.0,0.00040001,20]
[393682338,1762921856470,-500.0,0.00040001,20]
[393682339,1762921856481,-500.0,0.00040001,20]
[393682340,1762921856491,-500.0,0.00040001,20]
[393682341,1762921856501,-384.81263415,0.00040001,20]
[393682342,1762921856511,-500.0,0.00040001,20]
[393682343,1762921856521,-500.0,0.00040001,20]
[393682344,1762921856531,-494.2884301,0.00040001,20]
[393682345,1762921856541,-500.0,0.00040001,20]
[393682346,1762921856551,-969.65,0.00040001,20]
[393682347,1762921856562,-157.763248,0.00040001,120]
[393682348,1762921856571,-151.0,0.00040001,120]
[393682349,1762921856582,-158.282101,0.00040001,120]
[393682350,1762921856592,-500.0,0.00040001,20]
[393682351,1762921856601,-180.902965,0.00040001,120]
[393682352,1762921856611,-500.0,0.00040001,20]
[393682353,1762921856621,-151.0,0.00040001,120]
[393682354,1762921856631,-281.07251,0.00040001,120]
[393682355,1762921856641,-214.09006265,0.00040001,20]
[393682356,1762921856655,-151.0,0.00040001,120]
[393682357,1762921856669,-348.43706,0.00040001,120]
[393682358,1762921856684,-348.43706,0.00040001,120]
[393682359,1762921856694,-161.563541,0.00040001,120]
[393682360,1762921856704,-348.43706,0.00040001,120]
[393682361,1762921856714,-151.0,0.00040001,120]
[393682362,1762921856723,-500.0,0.00040001,20]
[393682363,1762921856733,-348.43706,0.00040001,120]
[393682364,1762921856742,-151.0,0.00040001,120]
[393682365,1762921856753,-240.552389,0.00040001,30]
[393682366,1762921856763,-151.0,0.00040001,120]
[393682367,1762921856773,-500.0,0.00040001,20]
[393682368,1762921856783,-151.0,0.00040001,120]
[393682369,1762921856793,-157.046074,0.00040001,120]
[393682370,1762921856805,-500.0,0.00040001,20]
[393682371,1762921856815,-185.563894,0.00040001,30]
[393682372,1762921856825,-151.0,0.00040001,120]
[393682373,1762921856835,-285.313257,0.00040001,120]
[393682374,1762921856844,-185.563894,0.00040001,30]
[393682375,1762921856854,-285.313257,0.00040001,120]
[393682376,1762921856864,-486.0,0.00040001,20]
[393682377,1762921856873,-168.98989,0.00040001,120]
[393682378,1762921856883,-500.0,0.00040001,20]
[393682379,1762921856894,-185.563894,0.00040001,30]
[393682380,1762921856906,-285.313257,0.00040001,120]
[393682381,1762921856915,-185.563894,0.00040001,30]
[393682382,1762921856925,-285.313257,0.00040001,120]
[393682383,1762921856934,-171.183144,0.00040001,95]
[393682384,1762921856943,-162.0519478,0.00040001,20]
[393682385,1762921856953,-647.43,0.00040001,20]
[393682386,1762921856963,-151.0,0.00040001,120]
[393682387,1762921856973,-151.0,0.00040001,120]
[393682388,1762921856983,-500.0,0.00040001,20]
[393682389,1762921856996,-225.51118327,0.00040001,20]
[393682390,1762921857006,-500.0,0.00040001,20]
[393682391,1762921857016,-500.0,0.00040001,20]
[393682392,1762921857026,-500.0,0.00040001,20]
[393682393,1762921857035,-500.0,0.00040001,20]
[393682394,1762921857045,-190.35290193,0.00040001,20]
[393682395,1762921857056,-500.0,0.00040001,20]
[393682396,1762921857069,-500.0,0.00040001,20]
[393682397,1762921857079,-500.0,0.00040001,20]
[393682398,1762921857089,-500.0,0.00040001,20]
[393682399,1762921857099,-1000.0,0.00040009,7]
[393682400,1762921857109,-500.0,0.00040009,20]
[393682401,1762921857119,-500.0,0.0004001,20]
[393682402,1762921857128,-502.23687508,0.0004001,20]
[393682403,1762921857138,-500.0,0.0004001,20]
[393682404,1762921857148,-519.33007114,0.0004001,20]
[393682405,1762921857157,-500.0,0.0004001,20]
[393682406,1762921857167,-550.10459296,0.0004001,20]
[393682407,1762921857177,-1000.0,0.0004001,2]
[393682408,1762921857187,-537.19704525,0.0004001,20]
[393682409,1762921857198,-500.0,0.0004001,20]
[393682410,1762921857208,-500.0,0.0004001,7]
[393682411,1762921857218,-500.0,0.0004001,20]
[393682412,1762921857227,-500.0,0.0004001,20]
[393682413,1762921857237,-500.0,0.0004001,20]
[393682414,1762921857246,-500.0,0.0004001,20]
[393682415,1762921857256,-500.0,0.0004001,20]
[393682416,1762921857266,-500.0,0.0004001,20]
[393682417,1762921857276,-500.0,0.0004001,20]
[393682418,1762921857286,-500.0,0.0004001,20]
[393682419,1762921857295,-500.0,0.0004001,20]
[393682420,1762921857306,-500.0,0.0004001,20]
[393682421,1762921857317,-500.0,0.0004001,20]
[393682422,1762921857327,-500.0,0.0004001,20]
[393682423,1762921857336,-500.0,0.0004001,20]
[393682424,1762921857346,-500.0,0.0004001,20]
[393682425,1762921857436,-500.0,0.0004001,20]
[393682426,1762921857453,-500.0,0.0004001,20]
[393682427,1762921857468,-500.0,0.0004001,20]
[393682428,1762921857483,-500.0,0.0004001,20]
[393682429,1762921857492,-500.0,0.0004001,20]
[393682430,1762921857502,-330.14513257,0.0004001,20]
[393682431,1762921857511,-500.0,0.0004001,20]
[393682432,1762921857520,-500.0,0.0004001,20]
[393682433,1762921857529,-564.75,0.0004001,2]
[393682434,1762921857538,-762.39,0.0004001,20]
[393682435,1762921857548,-500.0,0.0004001,20]
[393682436,1762921857559,-500.0,0.0004001,20]
[393682437,1762921857569,-500.0,0.0004001,20]
[393682438,1762921857578,-500.0,0.0004001,20]
[393682439,1762921857587,-500.0,0.0004001,20]
[393682440,1762921857596,-500.0,0.0004001,20]
[393682441,1762921857605,-500.0,0.0004001,20]
[393682442,1762921857615,-388.61520721,0.0004001,20]
[393682443,1762921857623,-500.0,0.0004001,20]
[393682444,1762921857633,-500.0,0.0004001,20]
[393682445,1762921857642,-551.57,0.0004001,20]
[393682446,1762921857651,-379.09361538,0.0004001,20]
[393682447,1762921857660,-618.59,0.0004001,20]
[393682448,1762921857669,-500.0,0.0004001,20]
[393682449,1762921857679,-500.0,0.0004001,20]
[393682450,1762921857688,-500.0,0.0004001,20]
[393682451,1762921857698,-500.0,0.0004001,20]
[393682452,1762921857708,-692.84,0.0004001,20]
[393682453,1762921857717,-500.0,0.0004001,20]
[393682454,1762921857726,-734.4,0.0004001,20]
[393682455,1762921857736,-500.0,0.0004001,20]
[393682456,1762921857746,-500.0,0.0004001,20]
[393682457,1762921857756,-500.0,0.0004001,20]
[393682458,1762921857766,-500.0,0.0004001,20]
[393682459,1762921857775,-645.41,0.0004001,2]
[393682460,1762921857785,-772.03,0.0004001,20]
[393682461,1762921857794,-500.0,0.0004001,20]
[393682462,1762921857803,-151.0,0.0004001,120]
[393682463,1762921857813,-631.53,0.0004001,20]
[393682464,1762921857822,-500.0,0.0004001,20]
[393682465,1762921857832,-151.661629,0.0004001,120]
[393682466,1762921857841,-216.27923697,0.0004001,20]
[393682467,1762921857850,-318.686872,0.0004001,120]
[393682468,1762921857859,-500.0,0.0004001,20]
[393682469,1762921857868,-318.686872,0.0004001,120]
[393682470,1762921857878,-318.686872,0.0004001,120]
[393682471,1762921857887,-318.686872,0.0004001,120]
[393682472,1762921857896,-500.0,0.0004001,20]
[393682473,1762921857906,-154.014904,0.0004001,120]
[393682474,1762921857915,-500.0,0.0004001,20]
[393682475,1762921857925,-500.0,0.0004001,20]
[393682476,1762921857934,-500.0,0.0004001,20]
[393682477,1762921857944,-500.0,0.0004001,20]
[393682478,1762921857954,-500.0,0.0004001,20]
[393682479,1762921857964,-500.0,0.0004001,20]
[393682480,1762921857971,-500.0,0.0004001,20]
[393682481,1762921857978,-500.0,0.0004001,20]
[393682482,1762921857985,-500.0,0.0004001,20]
[393682483,1762921857993,-151.0,0.0004001,120]
[393682484,1762921858002,-500.0,0.0004001,20]
[393682485,1762921858011,-500.0,0.0004001,20]
[393682486,1762921858020,-500.0,0.0004001,20]
[393682487,1762921858030,-500.0,0.0004001,20]
[393682488,1762921858039,-500.0,0.0004001,20]
[393682489,1762921858049,-500.0,0.0004001,20]
[393682490,1762921858058,-510.84783707,0.0004001,20]
[393682491,1762921858068,-500.0,0.0004001,20]
[393682492,1762921858078,-500.0,0.0004001,20]
[393682493,1762921858087,-500.0,0.0004001,20]
[393682494,1762921858097,-500.0,0.0004001,20]
[393682495,1762921858107,-500.0,0.0004001,20]
[393682496,1762921858117,-522.7,0.0004001,20]
[393682497,1762921858126,-500.0,0.0004001,20]
[393682498,1762921858136,-500.0,0.0004001,20]
[393682499,1762921858146,-500.0,0.0004001,20]
[393682500,1762921858156,-474.53183546,0.0004001,20]
[393682501,1762921858166,-500.0,0.0004001,20]
[393682502,1762921858176,-647.43,0.0004001,20]
[393682503,1762921858186,-500.0,0.0004001,20]
[393682504,1762921858195,-1149.92,0.0004001,20]
[393682505,1762921858204,-530.35,0.0004001,20]
[393682506,1762921858214,-500.0,0.0004001,20]
[393682507,1762921858223,-500.0,0.0004001,20]
[393682508,1762921858233,-500.0,0.0004001,20]
[393682509,1762921858243,-500.0,0.0004001,20]
[393682510,1762921858257,-500.0,0.0004001,20]
[393682511,1762921858270,-500.0,0.0004001,20]
[393682512,1762921858281,-500.0,0.0004001,20]
[393682513,1762921858291,-504.13,0.0004001,20]
[393682514,1762921858302,-500.0,0.0004001,20]
[393682515,1762921858314,-500.0,0.0004001,20]
[393682516,1762921858324,-500.0,0.0004001,20]
[393682517,1762921858335,-573.48,0.0004001,20]
[393682518,1762921858345,-563.35,0.0004001,20]
[393682519,1762921858356,-500.0,0.0004001,20]
[393682520,1762921858366,-500.0,0.0004001,20]
[393682521,1762921858375,-500.0,0.0004001,20]
[393682522,1762921858385,-500.0,0.0004001,20]
[393682523,1762921858395,-500.0,0.0004001,20]
[393682524,1762921858409,-500.0,0.0004001,20]
[393682525,1762921858419,-500.0,0.0004001,20]
[393682526,1762921858429,-500.0,0.0004001,20]
[393682527,1762921858440,-500.0,0.0004001,20]
[393682528,1762921858450,-500.0,0.0004001,20]
[393682529,1762921858459,-500.0,0.0004001,20]
[393682530,1762921858468,-500.0,0.00040011,20]
[393682531,1762921858478,-500.0,0.00040011,20]
[393682532,1762921858488,-500.0,0.00040011,20]
[393682533,1762921858497,-500.0,0.00040011,20]
[393682534,1762921858507,-500.0,0.00040011,20]
[393682535,1762921858516,-500.0,0.00040011,20]
[393682536,1762921858525,-500.0,0.00040011,20]
[393682537,1762921858535,-500.0,0.00040011,20]
[393682538,1762921858544,-500.0,0.00040011,20]
[393682539,1762921858554,-500.0,0.00040011,20]
[393682540,1762921858565,-500.0,0.00040011,20]
[393682541,1762921858575,-500.0,0.00040011,20]
[393682542,1762921858584,-500.0,0.00040011,20]
[393682543,1762921858593,-500.0,0.00040011,20]
[393682544,1762921858602,-500.0,0.00040011,20]
[393682545,1762921858611,-521.79510611,0.00040011,20]
[393682546,1762921858620,-500.0,0.00040011,20]
[393682547,1762921858629,-514.41014957,0.00040011,20]
[393682548,1762921858639,-762.39,0.00040011,20]
[393682549,1762921858648,-500.0,0.00040011,20]
[393682550,1762921858658,-500.0,0.00040011,20]
[393682551,1762921858667,-500.0,0.00040011,20]
[393682552,1762921858676,-500.0,0.00040011,20]
[393682553,1762921858686,-500.0,0.00040011,20]
[393682554,1762921858695,-500.0,0.00040011,20]
[393682555,1762921858704,-500.0,0.00040011,20]
[393682556,1762921858715,-500.0,0.00040011,20]
[393682557,1762921858724,-551.57,0.00040011,20]
[393682558,1762921858733,-537.75153686,0.00040011,20]
[393682559,1762921858742,-558.34200919,0.00040011,20]
[393682560,1762921858751,-500.0,0.00040011,20]
[393682561,1762921858760,-500.0,0.00040011,20]
[393682562,1762921858769,-464.29475275,0.00040011,20]
[393682563,1762921858778,-500.0,0.00040011,20]
[393682564,1762921858787,-500.0,0.00040011,20]
[393682565,1762921858873,-692.84,0.00040011,20]
[393682566,1762921858883,-540.0,0.00040011,20]
[393682567,1762921858892,-555.29608466,0.00040011,20]
[393682568,1762921858902,-500.0,0.00040011,20]
[393682569,1762921858911,-500.0,0.00040011,20]
[393682570,1762921858920,-151.135937,0.00040011,120]
[393682571,1762921858929,-500.0,0.00040011,20]
[393682572,1762921858939,-189.101147,0.00040011,120]
[393682573,1762921858948,-156.397523,0.00040011,120]
[393682574,1762921858957,-261.76916,0.00040011,120]
[393682575,1762921858967,-261.76916,0.00040011,120]
[393682576,1762921858977,-169.410277,0.00040011,120]
[393682577,1762921858986,-159.587371,0.00040011,30]